bitfinex/quotes_BTCUSD_20260104
["timestamp","ask_amount","ask_price","bid_price","bid_amount"]
[1767510480704,0.01095074,91318.0,91314.0,0.04879206]
[1767510480908,0.06570705,91315.0,91312.0,0.01095146]
[1767510481249,0.06570705,91315.0,91311.0,0.06570932]
[1767510482128,0.05475626,91314.0,91311.0,0.0620169]
[1767510482722,0.06570705,91315.0,91312.0,0.05475701]
[1767510482931,0.06570593,91316.0,91312.0,0.06570847]
[1767510483289,0.05475554,91315.0,91312.0,0.06570847]
[1767510483716,0.06570593,91316.0,91312.0,0.06570847]
[1767510483916,0.05475516,91316.0,91313.0,0.01095134]
[1767510484344,0.05475516,91316.0,91313.0,0.06570792]
[1767510484566,0.06570552,91317.0,91313.0,0.06570792]
[1767510484769,0.01095086,91317.0,91313.0,0.06570792]
[1767510485296,0.0111025,91320.0,91317.0,0.05475421]
[1767510485431,0.01095026,91322.0,91315.0,0.04879206]
[1767510485432,0.01095062,91319.0,91315.0,0.04879206]
[1767510485635,0.000999,91317.0,91314.0,0.06570705]
[1767510485838,0.05475422,91318.0,91314.0,0.06570705]
[1767510486352,0.05475275,91320.0,91315.0,0.0109511]
[1767510486552,0.05475324,91319.0,91316.0,0.05475434]
[1767510486752,0.06570386,91319.0,91316.0,0.01095098]
[1767510486954,0.01095062,91319.0,91316.0,0.06570562]
[1767510487167,0.05475397,91318.0,91314.0,0.06570732]
[1767510487571,0.06570634,91316.0,91312.0,0.01095146]
[1767510487776,0.010999,91314.0,91312.0,0.01095146]
[1767510487952,0.01,91314.0,91313.0,0.05475671]
[1767510488156,0.01095098,91316.0,91313.0,0.05475671]
[1767510488384,0.01095098,91316.0,91311.0,0.06570947]
[1767510488385,0.05475491,91316.0,91311.0,0.06570947]
[1767510488577,0.05475598,91315.0,91311.0,0.06570947]
[1767510488903,0.01095122,91314.0,91311.0,0.01095158]
[1767510489703,0.06570574,91317.0,91312.0,0.01095146]
[1767510490421,0.06570574,91317.0,91313.0,0.05475671]
[1767510490625,0.06570574,91317.0,91313.0,0.05375771]
[1767510490986,0.05475501,91316.0,91313.0,0.05375771]
[1767510491609,0.06570574,91317.0,91313.0,0.06470905]
[1767510492510,0.06570455,91318.0,91314.0,0.06570685]
[1767510492711,0.01095074,91318.0,91314.0,0.06570685]
[1767510492878,0.06570496,91318.0,91314.0,0.06570685]
[1767510493539,0.06570496,91318.0,91315.0,0.0547554]
[1767510493864,0.06570373,91319.0,91318.0,0.000999]
[1767510494224,0.06570373,91319.0,91316.0,0.01095098]
[1767510494418,0.06570373,91319.0,91316.0,0.06570587]
[1767510495032,0.06570167,91322.0,91319.0,0.000999]
[1767510495202,0.06570167,91322.0,91318.0,0.01095074]
[1767510495405,0.06570267,91321.0,91316.0,0.06570586]
[1767510495644,0.05475301,91320.0,91316.0,0.06570586]
[1767510495856,0.05475301,91320.0,91317.0,0.05475419]
[1767510496233,0.05475301,91320.0,91316.0,0.06570586]
[1767510496612,0.0109505,91320.0,91317.0,0.06570466]
[1767510497062,0.01095038,91321.0,91318.0,0.06570432]
[1767510497245,0.01095038,91321.0,91320.0,0.000999]
[1767510497439,0.06570166,91322.0,91319.0,0.05475296]
[1767510498974,0.06570089,91323.0,91320.0,0.05475245]
[1767510499170,0.06570089,91323.0,91319.0,0.06570358]
[1767510499332,0.05475146,91322.0,91319.0,0.06570358]
[1767510499528,0.01095015,91323.0,91320.0,0.06570296]
[1767510500027,0.05475135,91322.0,91319.0,0.06570358]
[1767510500235,0.01094978,91326.0,91322.0,0.000999]
[1767510500458,0.06569919,91326.0,91322.0,1e-08]
[1767510500655,0.0109499,91325.0,91322.0,0.06570145]
[1767510500978,0.06569919,91326.0,91323.0,0.05475056]
[1767510501274,0.06569919,91326.0,91323.0,0.04475063]
[1767510501476,0.06569907,91327.0,91323.0,0.05570077]
[1767510501778,0.06569907,91327.0,91324.0,0.01095002]
[1767510501980,0.06569907,91327.0,91324.0,0.06569963]
[1767510502178,0.01094918,91331.0,91327.0,0.000999]
[1767510502329,0.06569636,91330.0,91327.0,0.01194866]
[1767510502525,0.1113865,91330.0,91327.0,0.01194866]
[1767510502792,0.01094942,91329.0,91324.0,0.06569984]
[1767510502935,0.05474772,91328.0,91325.0,0.05474924]
[1767510503316,0.06569748,91328.0,91325.0,0.0109499]
[1767510503529,0.05663956,91329.0,91326.0,0.0656987]
[1767510503727,0.04569014,91329.0,91326.0,0.0656987]
[1767510504087,0.00010849,91331.0,91329.0,0.01099899]
[1767510504242,0.01094942,91329.0,91326.0,0.01094978]
[1767510504444,0.11138624,91330.0,91327.0,0.0656978]
[1767510504701,0.04569014,91328.0,91310.0,0.05897228]
[1767510504899,0.06570396,91319.0,91315.0,0.0109511]
[1767510505298,0.05475441,91317.0,91314.0,0.06570704]
[1767510505484,0.06570491,91318.0,91314.0,0.06570704]
[1767510505686,0.06570491,91318.0,91315.0,0.05475543]
[1767510505985,0.01095074,91318.0,91315.0,0.06570653]
[1767510506207,0.06570464,91318.0,91315.0,0.06570653]
[1767510507036,0.06570452,91318.0,91315.0,0.06570653]
[1767510507301,0.01095074,91318.0,91315.0,0.06570653]
[1767510507508,0.0109505,91320.0,91317.0,0.05475431]
[1767510507713,0.06570277,91321.0,91317.0,0.06570486]
[1767510507889,0.01095026,91322.0,91319.0,0.05475291]
[1767510508121,0.01095026,91322.0,91318.0,0.06570399]
[1767510508122,0.06570203,91322.0,91318.0,0.06570399]
[1767510508584,0.22994534,91327.0,91321.0,0.01095038]
[1767510508585,0.01095002,91324.0,91321.0,0.01095038]
[1767510508728,0.01094978,91326.0,91322.0,0.01095026]
[1767510508932,0.01094966,91327.0,91323.0,0.01095014]
[1767510509137,0.0547483,91328.0,91325.0,0.05474939]
[1767510509651,0.06569784,91328.0,91325.0,0.05474939]
[1767510510055,0.06569762,91329.0,91326.0,0.05474888]
[1767510510436,0.06569762,91329.0,91326.0,0.06569866]
[1767510510632,0.06569762,91329.0,91325.0,0.06569929]
[1767510511559,0.08772408,91331.0,91327.0,0.05474832]
[1767510512203,0.06569626,91330.0,91327.0,0.06569798]
[1767510512389,0.05474715,91329.0,91327.0,0.06569798]
[1767510512526,0.03297767,91331.0,91327.0,0.06569798]
[1767510512729,0.0109493,91330.0,91327.0,0.06569798]
[1767510512930,0.0656963,91330.0,91327.0,0.06569798]
[1767510513167,0.05474718,91329.0,91327.0,0.06569798]
[1767510513430,0.000999,91327.0,91325.0,0.06569891]
[1767510513631,0.0656966,91329.0,91325.0,0.06467684]
[1767510513886,0.06569776,91328.0,91324.0,0.06570013]
[1767510514057,0.05474846,91327.0,91324.0,0.06526698]
[1767510514263,0.06569776,91328.0,91324.0,0.06526698]
[1767510514682,0.06569596,91330.0,91326.0,0.05474887]
[1767510514845,0.000999,91326.0,91324.0,0.05475003]
[1767510515232,0.06569757,91329.0,91326.0,0.06569812]
[1767510515532,0.05474719,91329.0,91327.0,0.04928562]
[1767510515751,0.02202849,91331.0,91328.0,0.01094954]
[1767510515973,0.08772406,91331.0,91328.0,0.00995054]
[1767510516172,0.06569624,91330.0,91327.0,0.06569747]
[1767510516370,0.05474723,91329.0,91327.0,0.01094966]
[1767510516681,0.06569624,91330.0,91327.0,0.06569745]
[1767510516883,0.05474665,91330.0,91327.0,0.06569745]
[1767510517082,0.02202849,91331.0,91330.0,0.000999]
[1767510517519,0.02202849,91331.0,91328.0,0.0656968]
[1767510517732,0.02202849,91331.0,91329.0,0.05474693]
[1767510517942,0.08772379,91331.0,91328.0,0.01094954]
[1767510519203,0.08772379,91331.0,91328.0,0.06569677]
[1767510519402,0.0109493,91330.0,91324.0,0.01095002]
[1767510519733,0.01,91328.0,91325.0,0.06569891]
[1767510519951,0.064748,91328.0,91325.0,0.06569891]
[1767510520144,0.0657006,91324.0,91317.0,0.27925295]
[1767510520366,0.0657006,91324.0,91321.0,0.06570199]
[1767510520564,0.01094978,91326.0,91324.0,0.000999]
[1767510521057,0.06569917,91326.0,91323.0,0.06570082]
[1767510521284,0.06569917,91326.0,91324.0,0.05475005]
[1767510521665,0.06569917,91326.0,91323.0,0.06570082]
[1767510521824,0.06569808,91327.0,91324.0,0.0547499]
[1767510522287,0.06569808,91327.0,91324.0,0.06569992]
[1767510522464,0.06569808,91327.0,91324.0,0.06569995]
[1767510522668,0.06569808,91327.0,91324.0,0.06565598]
[1767510523192,0.06569825,91327.0,91324.0,0.06565598]
[1767510523599,0.01094966,91327.0,91325.0,0.05474932]
[1767510524100,0.0656981,91327.0,91324.0,0.06565598]
[1767510524405,0.06569914,91326.0,91323.0,0.06569975]
[1767510524706,0.06569742,91328.0,91325.0,0.05474934]
[1767510524913,0.05474837,91327.0,91324.0,0.06569998]
[1767510525110,0.01094978,91326.0,91322.0,0.01095026]
[1767510525315,0.05474996,91325.0,91321.0,0.0657017]
[1767510525542,0.01094978,91326.0,91321.0,0.01095038]
[1767510525741,0.01094978,91326.0,91303.0,0.04928562]
[1767510525742,0.01095218,91306.0,91301.0,0.01095278]
[1767510525953,0.06571237,91307.0,91306.0,0.000999]
[1767510526255,0.0657134,91306.0,91302.0,0.01095266]
[1767510526372,0.06571366,91306.0,91302.0,0.06571587]
[1767510526734,0.06571368,91306.0,91302.0,0.01095266]
[1767510526935,0.0657139,91305.0,91302.0,0.05476328]
[1767510527314,0.0657139,91305.0,91301.0,0.06571645]
[1767510527471,0.0657139,91305.0,91302.0,0.06571546]
[1767510527673,0.05476391,91301.0,91300.0,0.02192]
[1767510527934,0.01095254,91303.0,91300.0,0.08763683]
[1767510528151,0.06571542,91303.0,91300.0,0.08763683]
[1767510528284,0.05476222,91304.0,91301.0,0.06571632]
[1767510528479,0.06571464,91304.0,91300.0,0.08763683]
[1767510528734,0.06571577,91303.0,91300.0,0.0328729]
[1767510528890,0.06571577,91303.0,91300.0,0.08763732]
[1767510529297,0.06571577,91303.0,91299.0,0.06571801]
[1767510529701,0.06571577,91303.0,91300.0,0.0657171]
[1767510530261,0.06571564,91304.0,91301.0,0.06571617]
[1767510530576,0.06571386,91305.0,91302.0,0.01095266]
[1767510530739,0.06571386,91305.0,91302.0,0.06023828]
[1767510531307,0.0109523,91305.0,91302.0,0.11500105]
[1767510531508,0.0657141,91305.0,91302.0,0.04928562]
[1767510531707,0.0657141,91305.0,91302.0,0.10404885]
[1767510532894,0.01095218,91306.0,91302.0,0.06023828]
[1767510533076,0.06571368,91306.0,91303.0,0.04928562]
[1767510533225,0.06571368,91306.0,91303.0,0.06023816]
[1767510533424,0.01095218,91306.0,91304.0,0.05476199]
[1767510533644,0.05476141,91307.0,91304.0,0.05476199]
[1767510534163,0.06571347,91307.0,91303.0,0.1150008]
[1767510534528,0.05476111,91306.0,91303.0,0.1150008]
[1767510535331,0.05476155,91305.0,91303.0,0.04928562]
[1767510535543,0.06571329,91306.0,91303.0,0.04928562]
[1767510536395,0.01095218,91306.0,91303.0,0.04928562]
[1767510536603,0.05476185,91305.0,91303.0,0.04928562]
[1767510536801,0.05476185,91305.0,91303.0,0.04828662]
[1767510536978,0.06571315,91306.0,91303.0,0.10304926]
[1767510537182,0.06571315,91306.0,91303.0,0.04828662]
[1767510537183,0.05476155,91305.0,91303.0,0.04828662]
[1767510538874,0.01095206,91307.0,91305.0,0.000999]
[1767510538875,0.06571249,91307.0,91305.0,0.000999]
[1767510539074,0.06571249,91307.0,91305.0,0.05028462]
[1767510539449,0.06571249,91307.0,91305.0,0.04928562]
[1767510539875,0.05476096,91306.0,91304.0,0.04928562]
[1767510540080,0.01095194,91308.0,91304.0,0.04928562]
[1767510540406,0.05476096,91306.0,91304.0,0.04928562]
[1767510540996,0.06402339,91312.0,91308.0,0.05808673]
[1767510541293,0.21901326,91319.0,91308.0,0.06571121]
[1767510541294,0.03242135,91311.0,91308.0,0.06571121]
[1767510541848,0.06570864,91313.0,91309.0,0.05831477]
[1767510542049,0.06570835,91313.0,91310.0,0.06561014]
[1767510542267,0.06570749,91314.0,91311.0,0.05475777]
[1767510542482,0.06570808,91313.0,91310.0,0.0109517]
[1767510542690,0.06570808,91313.0,91309.0,0.06571044]
[1767510542884,0.01095134,91313.0,91310.0,0.06570963]
[1767510543092,0.06570736,91314.0,91310.0,0.06571016]
[1767510543294,0.06570736,91314.0,91311.0,0.05475786]
[1767510543692,0.06570736,91314.0,91310.0,0.06571016]
[1767510544966,0.06570878,91312.0,91309.0,0.01095182]
[1767510545168,0.06570739,91314.0,91310.0,0.0657102]
[1767510545738,0.01095122,91314.0,91311.0,0.06570896]
[1767510546197,0.10306588,91315.0,91312.0,0.05475725]
[1767510546412,0.04831001,91315.0,91312.0,0.06570871]
[1767510546612,0.11401712,91315.0,91311.0,0.06570896]
[1767510547069,0.11401712,91315.0,91312.0,0.06570854]
[1767510547267,0.03287098,91316.0,91312.0,0.06570854]
[1767510547465,0.11401708,91315.0,91311.0,0.12017078]
[1767510549182,0.04831001,91314.0,91311.0,0.12017078]
[1767510549394,0.10306622,91314.0,91311.0,0.12017078]
[1767510549996,0.11401744,91314.0,91311.0,0.12017075]
[1767510550693,0.06570743,91314.0,91311.0,0.12017075]
[1767510550898,0.08762593,91316.0,91312.0,0.06570862]
[1767510551102,0.13593594,91316.0,91312.0,0.06570862]
[1767510551299,0.04831001,91315.0,91312.0,0.06570862]
[1767510552094,0.04831001,91315.0,91313.0,0.05475627]
[1767510553048,0.04831001,91315.0,91312.0,0.06570769]
[1767510553049,0.08762601,91316.0,91312.0,0.06570822]
[1767510553545,0.05475626,91314.0,91311.0,0.12017082]
[1767510553749,0.0657071,91315.0,91312.0,0.05475718]
[1767510553957,0.0657071,91315.0,91312.0,0.06570864]
[1767510554183,0.04831001,91315.0,91313.0,0.0547566]
[1767510554789,0.10306552,91315.0,91312.0,0.06570864]
[1767510555342,0.04831001,91315.0,91313.0,0.05475658]
[1767510556018,0.087626,91316.0,91313.0,0.05475658]
[1767510556536,0.10306732,91312.0,91311.0,0.05446139]
[1767510557041,0.10306732,91312.0,91311.0,0.03843265]
[1767510557689,0.10306732,91312.0,91311.0,0.03743365]
[1767510558119,0.01095182,91309.0,91304.0,0.06571342]
[1767510558318,0.0109517,91310.0,91306.0,0.01095218]
[1767510558536,0.06571064,91310.0,91307.0,0.06571192]
[1767510558676,0.06571064,91310.0,91308.0,0.05475969]
[1767510558890,0.05475935,91309.0,91306.0,0.06571308]
[1767510559087,0.06571117,91309.0,91306.0,0.01095218]
[1767510559314,0.06571117,91309.0,91306.0,0.06571286]
[1767510559611,0.06571117,91309.0,91306.0,0.11993154]
[1767510560234,0.05475978,91308.0,91306.0,0.05421868]
[1767510560439,0.05926171,91310.0,91307.0,0.01095206]
[1767510561367,0.04831001,91310.0,91308.0,0.05475918]
[1767510561569,0.04731101,91310.0,91307.0,0.06571221]
[1767510562171,0.10206954,91310.0,91307.0,0.06571221]
[1767510562786,0.01099899,91307.0,91306.0,0.05421868]
[1767510562987,0.00999999,91307.0,91306.0,0.05421868]
[1767510563297,0.05475977,91308.0,91306.0,0.05421868]
[1767510563522,0.06571093,91309.0,91306.0,0.10897958]
[1767510564516,0.06571063,91310.0,91306.0,0.06517086]
[1767510564697,0.06571063,91310.0,91306.0,0.11993171]
[1767510565118,0.05476031,91307.0,91306.0,0.05421868]
[1767510565484,0.05475986,91308.0,91306.0,0.05421868]
[1767510566990,0.05476031,91307.0,91306.0,0.05421868]
[1767510567209,0.06571101,91309.0,91306.0,0.05421868]
[1767510567386,0.05475992,91308.0,91306.0,0.05421868]
[1767510567588,0.06571101,91309.0,91306.0,0.10897955]
[1767510567793,0.05475973,91308.0,91306.0,0.05421868]
[1767510568611,0.06571101,91309.0,91306.0,0.10897946]
[1767510568994,0.05475983,91308.0,91306.0,0.05421868]
[1767510569197,0.05476031,91307.0,91306.0,0.05421868]
[1767510570725,0.05476031,91307.0,91306.0,0.05321968]
[1767510571828,0.05476031,91307.0,91306.0,0.04321969]
[1767510572030,0.05475983,91308.0,91306.0,0.04321969]
[1767510573154,0.05476031,91307.0,91306.0,0.04321969]
[1767510574590,0.05475983,91308.0,91307.0,0.000999]
[1767510575212,0.06571109,91309.0,91306.0,0.04321969]
[1767510575448,0.06571109,91309.0,91306.0,0.05417187]
[1767510575618,0.06571109,91309.0,91306.0,0.04321969]
[1767510576038,0.05476021,91308.0,91306.0,0.04321969]
[1767510576436,0.05376131,91307.0,91306.0,0.04321969]
[1767510576641,0.05476021,91308.0,91306.0,0.04321969]
[1767510576902,0.05476031,91307.0,91306.0,0.04321969]
[1767510577028,0.05475974,91308.0,91306.0,0.04222069]
[1767510577231,0.06571213,91309.0,91306.0,0.04222069]
[1767510577427,0.05476031,91307.0,91306.0,0.04222069]
[1767510578389,0.05476028,91308.0,91306.0,0.04222069]
[1767510579461,0.05376128,91308.0,91306.0,0.04222069]
[1767510581000,0.01095182,91309.0,91306.0,0.04222069]
[1767510582399,0.05475995,91308.0,91306.0,0.04222069]
[1767510582980,0.06571094,91309.0,91306.0,0.04222069]
[1767510583592,0.05476008,91308.0,91306.0,0.04222069]
[1767510584027,0.05476031,91307.0,91306.0,0.04222069]
[1767510584663,0.05476008,91308.0,91306.0,0.04222069]
[1767510585007,0.06571099,91309.0,91306.0,0.04222069]
[1767510585924,0.05475971,91308.0,91306.0,0.04222069]
[1767510586946,0.06571099,91309.0,91306.0,0.04222069]
[1767510588657,0.05475974,91308.0,91306.0,0.04222069]
[1767510589065,0.10174834,91308.0,91306.0,0.04222069]
[1767510589264,0.05476031,91307.0,91306.0,0.04222069]
[1767510589459,0.01095254,91303.0,91298.0,0.01095314]
[1767510589638,0.01095266,91302.0,91299.0,0.06571763]
[1767510589844,0.01102775,91303.0,91302.0,0.01]
[1767510590157,0.06579046,91303.0,91302.0,0.009001]
[1767510590368,0.05476511,91299.0,91298.0,0.05345944]
[1767510590577,0.0657167,91301.0,91298.0,0.11917782]
[1767510590778,0.06571639,91302.0,91299.0,0.000999]
[1767510590979,0.05476451,91300.0,91298.0,0.05345944]
[1767510591345,0.05476511,91299.0,91298.0,0.05345944]
[1767510591565,0.06571673,91301.0,91298.0,0.05345944]
[1767510591973,0.05471954,91300.0,91298.0,0.05345944]
[1767510592177,0.05476511,91299.0,91298.0,0.05345944]
[1767510592415,0.05471954,91300.0,91298.0,0.05345944]
[1767510592574,0.0657177,91301.0,91298.0,0.10822506]
[1767510593394,0.06571601,91302.0,91298.0,0.1191782]
[1767510593553,0.05476416,91301.0,91298.0,0.1191782]
[1767510593939,0.06571631,91302.0,91301.0,0.000999]
[1767510594392,0.06571631,91302.0,91299.0,0.06571803]
[1767510594786,0.06579051,91303.0,91300.0,0.05476446]
[1767510595154,0.05476276,91303.0,91300.0,0.05476446]
[1767510595596,0.0657153,91303.0,91300.0,0.06571736]
[1767510596293,0.01095254,91303.0,91301.0,0.05476379]
[1767510596643,0.06571526,91303.0,91300.0,0.06571736]
[1767510597025,0.06571526,91303.0,91300.0,0.0109529]
[1767510597329,0.06571526,91303.0,91300.0,0.06571734]
[1767510598091,0.01095254,91303.0,91300.0,0.06571734]
[1767510598297,0.01095266,91302.0,91299.0,0.01095302]
[1767510598501,0.05476405,91301.0,91299.0,0.01095302]
[1767510598700,0.05476483,91300.0,91298.0,0.05345944]
[1767510598916,0.06571683,91301.0,91298.0,0.11917778]
[1767510599116,0.06571642,91302.0,91299.0,0.0547647]
[1767510599321,0.05476399,91301.0,91298.0,0.11917778]
[1767510599941,0.06571642,91302.0,91299.0,0.05476488]
[1767510600343,0.01095254,91303.0,91301.0,0.05476349]
[1767510600659,0.06571541,91303.0,91300.0,0.05476451]
[1767510601006,0.0109523,91305.0,91301.0,0.01095278]
[1767510601256,0.06571501,91304.0,91301.0,0.01095278]
[1767510601421,0.01095254,91303.0,91300.0,0.0109529]
[1767510601616,0.000999,91301.0,91300.0,0.06571718]
[1767510602036,0.06571289,91307.0,91304.0,0.06571336]
[1767510602241,0.05476099,91306.0,91303.0,0.06571522]
[1767510602456,0.06571289,91307.0,91304.0,0.05476203]
[1767510602816,0.05476105,91306.0,91303.0,0.06571522]
[1767510604045,0.06571323,91306.0,91303.0,0.06571522]
[1767510604497,0.11825573,91305.0,91303.0,0.06571522]
[1767510605197,0.17301735,91305.0,91302.0,0.06571581]
[1767510605494,0.18396965,91305.0,91302.0,0.06571589]
[1767510606610,0.01095242,91304.0,91298.0,0.05345944]
[1767510606903,0.01095278,91301.0,91298.0,0.06441258]
[1767510607077,0.02095266,91302.0,91299.0,0.06571806]
[1767510607276,0.01,91302.0,91299.0,0.06571806]
[1767510607477,0.02095266,91302.0,91299.0,0.05476465]
[1767510607685,0.01,91302.0,91299.0,0.06571767]
[1767510608203,0.06571606,91302.0,91299.0,0.01095302]
[1767510608407,0.06571606,91302.0,91299.0,0.06571805]
[1767510608999,0.000999,91299.0,91298.0,0.11917828]
[1767510609206,0.04842417,91299.0,91298.0,0.01917828]
[1767510609406,0.04842417,91299.0,91297.0,0.05476587]
[1767510609704,0.04842417,91299.0,91298.0,0.06571885]
[1767510610979,0.06571673,91301.0,91298.0,0.06571885]
[1767510611152,0.01571673,91301.0,91298.0,0.16848578]
[1767510611359,0.06571606,91302.0,91299.0,0.04846622]
[1767510611591,0.06571526,91303.0,91299.0,0.11418428]
[1767510612203,0.06571526,91303.0,91300.0,0.04846622]
[1767510612406,0.05476331,91302.0,91300.0,0.04840622]
[1767510613148,0.01095254,91303.0,91300.0,0.04840622]
[1767510613298,0.06571492,91304.0,91300.0,0.04840622]
[1767510613500,0.01095254,91303.0,91300.0,0.05935912]
[1767510613919,0.0657156,91303.0,91300.0,0.05935912]
[1767510614512,0.05476346,91302.0,91300.0,0.05935912]
[1767510614722,0.0657156,91303.0,91300.0,0.11412336]
[1767510615259,0.0657156,91303.0,91300.0,0.11412341]
[1767510615462,0.01095242,91304.0,91303.0,0.000999]
[1767510615870,0.06571504,91304.0,91301.0,0.06571663]
[1767510616268,0.06571504,91304.0,91301.0,0.04846622]
[1767510616435,0.06571504,91304.0,91301.0,0.11418244]
[1767510616841,0.01095242,91304.0,91302.0,0.05476329]
[1767510617338,0.06571475,91304.0,91301.0,0.11418244]
[1767510617743,0.05476296,91303.0,91301.0,0.04846622]
[1767510618579,0.18396956,91305.0,91301.0,0.059419]
[1767510619343,0.12920803,91305.0,91302.0,0.06571583]
[1767510619543,0.18397,91305.0,91302.0,0.06571583]
[1767510619743,0.06571457,91304.0,91301.0,0.11418277]
[1767510620560,0.06571457,91304.0,91302.0,0.04846622]
[1767510621832,0.06571481,91304.0,91301.0,0.06571655]
[1767510622754,0.05476283,91303.0,91301.0,0.01095278]
[1767510623104,0.06571481,91304.0,91303.0,0.000999]
[1767510623544,0.05476279,91303.0,91301.0,0.01095278]
[1767510624043,0.05476279,91303.0,91300.0,0.11418256]
[1767510625105,0.06571533,91303.0,91300.0,0.10323054]
[1767510625325,0.06571533,91303.0,91300.0,0.06571722]
[1767510626352,0.06571567,91303.0,91299.0,0.01095302]
[1767510626512,0.05476371,91302.0,91299.0,0.06571795]
[1767510626917,0.17301727,91305.0,91302.0,0.01095266]
[1767510627118,0.05476235,91304.0,91302.0,0.01095266]
[1767510627820,0.18396957,91305.0,91302.0,0.0657159]
[1767510628763,0.11825573,91305.0,91304.0,0.05476211]
[1767510628931,0.11816777,91305.0,91304.0,0.05476211]
[1767510629934,0.11816777,91305.0,91304.0,0.05376311]
[1767510630520,0.11716877,91305.0,91304.0,0.05376311]
[1767510632790,0.0109517,91310.0,91308.0,0.0547594]
[1767510632791,0.11825573,91310.0,91308.0,0.0547594]
[1767510632993,0.11825573,91310.0,91308.0,0.05366037]
[1767510633565,0.11825573,91310.0,91307.0,0.06571232]
[1767510633880,0.11825573,91310.0,91308.0,0.05475965]
[1767510634081,0.11825573,91310.0,91307.0,0.01095206]
[1767510634297,0.17301432,91310.0,91307.0,0.06571191]
[1767510634595,0.17301432,91310.0,91307.0,0.01095206]
[1767510635125,0.17301432,91310.0,91307.0,0.06571235]
[1767510636729,0.11825573,91310.0,91307.0,0.06571235]
[1767510637387,0.11825573,91310.0,91308.0,0.05475971]
[1767510637947,0.11825573,91310.0,91307.0,0.06571235]
[1767510637948,0.18396601,91310.0,91307.0,0.01095206]
[1767510638227,0.18396601,91310.0,91307.0,0.06571232]
[1767510638526,0.0547593,91309.0,91306.0,0.0547609]
[1767510639330,0.18396601,91310.0,91307.0,0.06571184]
[1767510641153,0.05475928,91309.0,91307.0,0.01095206]
[1767510641315,0.18396601,91310.0,91307.0,0.06571196]
[1767510641817,0.11825573,91310.0,91308.0,0.05475934]
[1767510641995,0.17301435,91310.0,91307.0,0.06571196]
[1767510642202,0.11825573,91310.0,91308.0,0.05475946]
[1767510642547,0.17301425,91310.0,91308.0,0.05475946]
[1767510642752,0.11825573,91310.0,91308.0,0.05475946]
[1767510642950,0.17301451,91310.0,91307.0,0.06571196]
[1767510644640,0.17301434,91310.0,91308.0,0.0547596]
[1767510645076,0.17301434,91310.0,91307.0,0.06571196]
[1767510645659,0.17301434,91310.0,91308.0,0.05475964]
[1767510646536,0.17301434,91310.0,91307.0,0.06571196]
[1767510646736,0.11825573,91310.0,91308.0,0.05475947]
[1767510647045,0.1730143,91310.0,91307.0,0.06571196]
[1767510651101,0.1730143,91310.0,91308.0,0.05475958]
[1767510651604,0.1730143,91310.0,91307.0,0.06571196]
[1767510651934,0.11825573,91310.0,91308.0,0.0547595]
[1767510652244,0.17301431,91310.0,91308.0,0.0547595]
[1767510652827,0.17301431,91310.0,91307.0,0.06571196]
[1767510653035,0.05475949,91309.0,91306.0,0.05476085]
[1767510653445,0.05475981,91308.0,91305.0,0.06571269]
[1767510653669,0.05476033,91307.0,91305.0,0.06571378]
[1767510653869,0.05476033,91307.0,91305.0,0.0109523]
[1767510654417,0.01095242,91304.0,91300.0,0.0109529]
[1767510654614,0.01095242,91304.0,91301.0,0.01095278]
[1767510654838,0.01095242,91304.0,91300.0,0.06571698]
[1767510655237,0.06571457,91304.0,91301.0,0.06571637]
[1767510655577,0.0657133,91306.0,91303.0,0.05476239]
[1767510655931,0.05476167,91305.0,91302.0,0.06571554]
[1767510657079,0.06571254,91307.0,91305.0,0.000999]
[1767510657562,0.06571254,91307.0,91304.0,0.05476205]
[1767510658304,0.06571254,91307.0,91304.0,0.06571447]
[1767510659536,0.05476151,91305.0,91303.0,0.01095254]
[1767510659749,0.06571319,91306.0,91303.0,0.06571521]
[1767510660096,0.05476102,91306.0,91303.0,0.06571521]
[1767510660261,0.0657132,91306.0,91303.0,0.06571521]
[1767510660478,0.0657132,91306.0,91303.0,0.06542858]
[1767510660605,0.34824177,91310.0,91306.0,0.000999]
[1767510660606,0.01095194,91308.0,91306.0,0.000999]
[1767510660809,0.01095194,91308.0,91303.0,0.01066591]
[1767510660810,0.01123877,91306.0,91303.0,0.06571483]
[1767510661061,0.0109523,91305.0,91300.0,0.0109529]
[1767510661236,0.01000001,91303.0,91302.0,0.05476329]
[1767510661620,0.00028659,91306.0,91303.0,0.01095254]
[1767510661824,0.00028659,91306.0,91304.0,0.05476211]
[1767510662568,0.00028659,91306.0,91305.0,0.05476151]
[1767510663351,0.00028659,91306.0,91305.0,0.05447488]
[1767510663550,0.01095194,91308.0,91306.0,0.05476075]
[1767510664308,0.06571173,91308.0,91305.0,0.06542718]
[1767510664511,0.01095194,91308.0,91306.0,0.05476079]
[1767510664850,0.06571139,91309.0,91306.0,0.05476079]
[1767510665272,0.06571173,91308.0,91305.0,0.0109523]
[1767510665473,0.06571173,91308.0,91305.0,0.06571377]
[1767510665681,0.01095194,91308.0,91305.0,0.06571377]
[1767510665889,0.01095182,91309.0,91306.0,0.06571293]
[1767510666109,0.06571098,91309.0,91306.0,0.06571293]
[1767510666304,0.04660137,91308.0,91307.0,0.05476006]
[1767510666508,0.04660137,91308.0,91307.0,0.05476031]
[1767510666864,0.04660137,91308.0,91306.0,0.06571293]
[1767510668253,0.0657079,91314.0,91309.0,0.01095182]
[1767510668454,0.02192,91316.0,91314.0,0.01095122]
[1767510668663,0.02192,91316.0,91315.0,0.05475551]
[1767510668788,0.06657697,91316.0,91315.0,0.05475551]
[1767510669126,0.02182,91316.0,91315.0,0.05475551]
[1767510669690,0.01210659,91316.0,91315.0,0.05475551]
[1767510670132,0.01094882,91334.0,91328.0,0.04736943]
[1767510670276,0.01094966,91327.0,91325.0,0.05474944]
[1767510670477,0.07569778,91328.0,91325.0,0.06569906]
[1767510670679,0.01,91328.0,91325.0,0.0109499]
[1767510670962,0.01,91328.0,91326.0,0.05474855]
[1767510671083,0.01,91328.0,91325.0,0.06569938]
[1767510671285,0.06569783,91328.0,91324.0,0.06569897]
[1767510672033,0.06569783,91328.0,91325.0,0.06569888]
[1767510672261,0.06569783,91328.0,91325.0,0.06569898]
[1767510672606,0.0109487,91335.0,91329.0,0.01094942]
[1767510672807,0.01094894,91333.0,91331.0,0.05474585]
[1767510673004,0.06569335,91335.0,91331.0,0.05474585]
[1767510673414,0.06569335,91335.0,91331.0,0.05445927]
[1767510673819,0.06569335,91335.0,91331.0,0.06540845]
[1767510674001,0.05474438,91334.0,91331.0,0.06540845]
[1767510674207,0.0656932,91334.0,91331.0,0.01094918]
[1767510674502,0.01094882,91334.0,91331.0,0.06569459]
[1767510674959,0.06569297,91334.0,91331.0,0.06569459]
[1767510675161,0.05474301,91336.0,91332.0,0.06569416]
[1767510675359,0.06569159,91336.0,91332.0,0.06569416]
[1767510675764,0.06569159,91336.0,91333.0,0.0547447]
[1767510675964,0.06569159,91336.0,91332.0,0.06540758]
[1767510675965,0.04465697,91335.0,91332.0,0.06540758]
[1767510676427,0.05474363,91335.0,91332.0,0.06540758]
[1767510676626,0.06569233,91335.0,91332.0,0.00995006]
[1767510676827,0.0109487,91335.0,91332.0,0.0646948]